[Event "Titled Tuesday Blitz August 15 Late 2023"]
[White "ciroreva-CB"]
[Black "Jovic, Stanoje"]
[BlackFideId "905020"]
[WhiteElo "2339"]
[BlackElo "2484"]
[Result "1/2-1/2"]
[Round "6"]
[TimeControl "180+1"]
[Date "2023.08.15"]
[WhiteClock "0:00:12"]
[BlackClock "0:00:03"]
[Board "107"]

1. e4 {[%clk 0:03:00]}  c6 {[%clk 0:02:58]} 2. Nf3 {[%clk 0:02:59]}  d5 {[%clk 0:02:58]} 3. d3 {[%clk 0:03:00]}  dxe4 {[%clk 0:02:57]} 4. dxe4 {[%clk 0:03:01]}  Qxd1+ {[%clk 0:02:57]} 5. Kxd1 {[%clk 0:03:02]}  Bg4 {[%clk 0:02:56]} 6. Be2 {[%clk 0:03:01]}  Bxf3 {[%clk 0:02:56]} 7. Bxf3 {[%clk 0:03:00]}  h5 {[%clk 0:02:56]} 8. Ke2 {[%clk 0:02:56]}  g6 {[%clk 0:02:55]} 9. Be3 {[%clk 0:02:49]}  Nd7 {[%clk 0:02:54]} 10. Nd2 {[%clk 0:02:46]}  Bh6 {[%clk 0:02:53]} 11. Bd4 {[%clk 0:02:44]}  e5 {[%clk 0:02:51]} 12. Bc3 {[%clk 0:02:43]}  Bxd2 {[%clk 0:02:46]} 13. Bxd2 {[%clk 0:02:31]}  Ke7 {[%clk 0:02:42]} 14. a4 {[%clk 0:02:22]}  Ngf6 {[%clk 0:02:40]} 15. a5 {[%clk 0:02:15]}  Rhd8 {[%clk 0:02:37]} 16. Rhd1 {[%clk 0:02:13]}  Ke6 {[%clk 0:02:32]} 17. Be3 {[%clk 0:02:03]}  Ng4 {[%clk 0:02:26]} 18. Bxg4+ {[%clk 0:02:01]}  hxg4 {[%clk 0:02:26]} 19. Ra3 {[%clk 0:02:01]}  Nf6 {[%clk 0:02:19]} 20. Rxd8 {[%clk 0:01:35]}  Rxd8 {[%clk 0:02:18]} 21. f3 {[%clk 0:01:25]}  gxf3+ {[%clk 0:02:18]} 22. gxf3 {[%clk 0:01:25]}  Rh8 {[%clk 0:02:12]} 23. Bxa7 {[%clk 0:01:24]}  Rxh2+ {[%clk 0:02:12]} 24. Kd3 {[%clk 0:01:24]}  Nh5 {[%clk 0:01:47]} 25. Rb3 {[%clk 0:01:21]}  Nf4+ {[%clk 0:01:46]} 26. Kc3 {[%clk 0:01:15]}  Ne2+ {[%clk 0:01:35]} 27. Kc4 {[%clk 0:01:14]}  Nc1 {[%clk 0:01:28]} 28. Rc3 {[%clk 0:00:57]}  Ne2 {[%clk 0:00:36]} 29. Re3 {[%clk 0:00:55]}  Nf4 {[%clk 0:00:29]} 30. Kb3 {[%clk 0:00:41]}  f5 {[%clk 0:00:28]} 31. exf5+ {[%clk 0:00:39]}  gxf5 {[%clk 0:00:28]} 32. Bb8 {[%clk 0:00:34]}  Ng6 {[%clk 0:00:19]} 33. Bxe5 {[%clk 0:00:33]}  Nxe5 {[%clk 0:00:18]} 34. f4 {[%clk 0:00:33]}  Rf2 {[%clk 0:00:15]} 35. Rxe5+ {[%clk 0:00:26]}  Kf6 {[%clk 0:00:15]} 36. Re8 {[%clk 0:00:23]}  Rxf4 {[%clk 0:00:14]} 37. Rb8 {[%clk 0:00:23]}  Rf3+ {[%clk 0:00:10]} 38. c3 {[%clk 0:00:23]}  Rf1 {[%clk 0:00:09]} 39. Rxb7 {[%clk 0:00:23]}  Ra1 {[%clk 0:00:07]} 40. Kb4 {[%clk 0:00:21]}  f4 {[%clk 0:00:07]} 41. Rb6 {[%clk 0:00:19]}  f3 {[%clk 0:00:07]} 42. Rxc6+ {[%clk 0:00:20]}  Ke5 {[%clk 0:00:07]} 43. Rc8 {[%clk 0:00:19]}  f2 {[%clk 0:00:07]} 44. Rf8 {[%clk 0:00:19]}  f1=Q {[%clk 0:00:06]} 45. Rxf1 {[%clk 0:00:20]}  Rxf1 {[%clk 0:00:06]} 46. Kb5 {[%clk 0:00:20]}  Kd6 {[%clk 0:00:06]} 47. Kb6 {[%clk 0:00:19]}  Rb1 {[%clk 0:00:03]} 48. b4 {[%clk 0:00:19]}  Rb3 {[%clk 0:00:03]} 49. a6 {[%clk 0:00:19]}  Rxc3 {[%clk 0:00:03]} 50. a7 {[%clk 0:00:17]}  Ra3 {[%clk 0:00:03]} 51. b5 {[%clk 0:00:17]}  Kd5 {[%clk 0:00:04]} 52. Kb7 {[%clk 0:00:17]}  Kc5 {[%clk 0:00:04]} 53. b6 {[%clk 0:00:17]}  Kb5 {[%clk 0:00:03]} 54. Kc7 {[%clk 0:00:17]}  Ra6 {[%clk 0:00:03]} 55. b7 {[%clk 0:00:10]}  Rxa7 {[%clk 0:00:03]} 56. Kc8 {[%clk 0:00:11]}  Rxb7 {[%clk 0:00:03]} 57. Kxb7 {[%clk 0:00:12]} 1/2-1/2


[Site "https://www.chess.com"]

[Event "Titled Tuesday Blitz August 15 Late 2023"]
[White "Seletsky, Grigory"]
[Black "Stachanczyk, Jacek"]
[WhiteFideId "14112191"]
[BlackFideId "1116657"]
[WhiteElo "2483"]
[BlackElo "2338"]
[Result "1-0"]
[Round "6"]
[TimeControl "180+1"]
[Date "2023.08.15"]
[WhiteClock "0:01:08"]
[BlackClock "0:01:04"]
[Board "108"]

1. e4 {[%clk 0:02:56]}  c5 {[%clk 0:02:58]} 2. Nc3 {[%clk 0:02:54]}  d6 {[%clk 0:02:57]} 3. f4 {[%clk 0:02:52]}  e6 {[%clk 0:02:47]} 4. Nf3 {[%clk 0:02:53]}  Be7 {[%clk 0:02:47]} 5. a4 {[%clk 0:02:46]}  Nc6 {[%clk 0:02:46]} 6. Bc4 {[%clk 0:02:46]}  Nf6 {[%clk 0:02:41]} 7. Ba2 {[%clk 0:02:47]}  O-O {[%clk 0:02:40]} 8. d3 {[%clk 0:02:47]}  b6 {[%clk 0:02:38]} 9. O-O {[%clk 0:02:48]}  Bb7 {[%clk 0:02:38]} 10. h3 {[%clk 0:02:48]}  d5 {[%clk 0:02:32]} 11. e5 {[%clk 0:02:47]}  Nd7 {[%clk 0:02:32]} 12. Ne2 {[%clk 0:02:47]}  a6 {[%clk 0:02:24]} 13. c3 {[%clk 0:02:47]}  b5 {[%clk 0:02:25]} 14. d4 {[%clk 0:02:47]}  cxd4 {[%clk 0:02:22]} 15. cxd4 {[%clk 0:02:45]}  Nb6 {[%clk 0:02:22]} 16. b3 {[%clk 0:02:44]}  bxa4 {[%clk 0:02:21]} 17. bxa4 {[%clk 0:02:44]}  a5 {[%clk 0:02:21]} 18. Rf2 {[%clk 0:02:40]}  Ba6 {[%clk 0:02:21]} 19. Ng3 {[%clk 0:02:29]}  Nb4 {[%clk 0:02:20]} 20. Bb1 {[%clk 0:02:28]}  Rc8 {[%clk 0:02:16]} 21. f5 {[%clk 0:02:27]}  Bh4 {[%clk 0:02:09]} 22. Nxh4 {[%clk 0:02:18]}  Qxh4 {[%clk 0:02:09]} 23. Kh2 {[%clk 0:02:14]}  Rc3 {[%clk 0:01:59]} 24. Bf4 {[%clk 0:02:10]}  Rfc8 {[%clk 0:01:47]} 25. Qg4 {[%clk 0:01:44]}  Qxg4 {[%clk 0:01:44]} 26. hxg4 {[%clk 0:01:43]}  Nd3 {[%clk 0:01:26]} 27. Bxd3 {[%clk 0:01:42]}  Rxd3 {[%clk 0:01:27]} 28. Rd2 {[%clk 0:01:36]}  Rcc3 {[%clk 0:01:18]} 29. Rb1 {[%clk 0:01:27]}  Rb3 {[%clk 0:01:14]} 30. Rxb3 {[%clk 0:01:19]}  Rxb3 {[%clk 0:01:15]} 31. f6 {[%clk 0:01:15]}  Bc4 {[%clk 0:01:09]} 32. fxg7 {[%clk 0:01:11]}  Kxg7 {[%clk 0:01:10]} 33. Nh5+ {[%clk 0:01:10]}  Kg6 {[%clk 0:01:09]} 34. Rf2 {[%clk 0:01:09]}  Nxa4 {[%clk 0:01:07]} 35. Bd2 {[%clk 0:01:08]}  Nc3 {[%clk 0:01:04]} 36. Rf6# {[%clk 0:01:08]} 1-0


[Site "https://www.chess.com"]

[Event "Titled Tuesday Blitz August 15 Late 2023"]
[White "Merino Garcia, Rafael II"]
[Black "Gerbelli Neto, Eduardo"]
[WhiteFideId "2209128"]
[BlackFideId "2103281"]
[WhiteElo "2481"]
[BlackElo "2338"]
[Result "1-0"]
[Round "6"]
[TimeControl "180+1"]
[Date "2023.08.15"]
[WhiteClock "0:00:52"]
[BlackClock "0:00:01"]
[Board "109"]

1. d4 {[%clk 0:03:00]}  d5 {[%clk 0:02:59]} 2. Nf3 {[%clk 0:03:00]}  Nf6 {[%clk 0:02:59]} 3. g3 {[%clk 0:03:00]}  e6 {[%clk 0:02:58]} 4. Bg2 {[%clk 0:03:00]}  c5 {[%clk 0:02:58]} 5. c4 {[%clk 0:02:58]}  Nc6 {[%clk 0:02:57]} 6. cxd5 {[%clk 0:02:58]}  Nxd5 {[%clk 0:02:53]} 7. O-O {[%clk 0:02:57]}  cxd4 {[%clk 0:02:48]} 8. Nxd4 {[%clk 0:02:56]}  Be7 {[%clk 0:02:42]} 9. Nxc6 {[%clk 0:02:45]}  bxc6 {[%clk 0:02:43]} 10. a3 {[%clk 0:02:23]}  O-O {[%clk 0:02:36]} 11. e4 {[%clk 0:02:21]}  Nb6 {[%clk 0:02:31]} 12. Qc2 {[%clk 0:02:20]}  Qc7 {[%clk 0:02:17]} 13. Be3 {[%clk 0:02:19]}  e5 {[%clk 0:02:06]} 14. Rc1 {[%clk 0:02:11]}  Bb7 {[%clk 0:01:59]} 15. Nd2 {[%clk 0:02:07]}  Rfd8 {[%clk 0:01:52]} 16. Nb3 {[%clk 0:02:00]}  Nd7 {[%clk 0:01:18]} 17. Bh3 {[%clk 0:01:35]}  a5 {[%clk 0:01:00]} 18. Rd1 {[%clk 0:01:18]}  a4 {[%clk 0:00:58]} 19. Nc5 {[%clk 0:01:18]}  Nxc5 {[%clk 0:00:49]} 20. Bxc5 {[%clk 0:01:18]}  Bxc5 {[%clk 0:00:43]} 21. Qxc5 {[%clk 0:01:17]}  Ra5 {[%clk 0:00:39]} 22. Qc3 {[%clk 0:01:08]}  f6 {[%clk 0:00:23]} 23. Bg4 {[%clk 0:00:59]}  g6 {[%clk 0:00:21]} 24. Rxd8+ {[%clk 0:00:58]}  Qxd8 {[%clk 0:00:20]} 25. Rd1 {[%clk 0:00:59]}  Qb6 {[%clk 0:00:21]} 26. Be6+ {[%clk 0:00:57]}  Kf8 {[%clk 0:00:13]} 27. Qd2 {[%clk 0:00:56]}  Ra8 {[%clk 0:00:08]} 28. Qh6+ {[%clk 0:00:52]}  Ke7 {[%clk 0:00:01]} 29. Qg7+ {[%clk 0:00:52]} 1-0


[Site "https://www.chess.com"]

[Event "Titled Tuesday Blitz August 15 Late 2023"]
[White "Ouellet, Maili-Jade"]
[Black "Michalczak, Thomas"]
[WhiteFideId "2620472"]
[BlackFideId "4622634"]
[WhiteElo "2337"]
[BlackElo "2478"]
[Result "0-1"]
[Round "6"]
[TimeControl "180+1"]
[Date "2023.08.15"]
[WhiteClock "0:00:00"]
[BlackClock "0:00:05"]
[Board "110"]

1. e4 {[%clk 0:03:00]}  e5 {[%clk 0:02:57]} 2. Nf3 {[%clk 0:02:59]}  Nc6 {[%clk 0:02:57]} 3. Bb5 {[%clk 0:02:58]}  a6 {[%clk 0:02:57]} 4. Ba4 {[%clk 0:02:58]}  Nf6 {[%clk 0:02:57]} 5. O-O {[%clk 0:02:58]}  Be7 {[%clk 0:02:57]} 6. d3 {[%clk 0:02:57]}  b5 {[%clk 0:02:48]} 7. Bb3 {[%clk 0:02:57]}  d6 {[%clk 0:02:48]} 8. a4 {[%clk 0:02:54]}  Bd7 {[%clk 0:02:49]} 9. c3 {[%clk 0:02:51]}  O-O {[%clk 0:02:46]} 10. h3 {[%clk 0:02:48]}  h6 {[%clk 0:02:46]} 11. Re1 {[%clk 0:02:47]}  Re8 {[%clk 0:02:45]} 12. Nbd2 {[%clk 0:02:47]}  Bf8 {[%clk 0:02:45]} 13. Nf1 {[%clk 0:02:47]}  Na5 {[%clk 0:02:44]} 14. Bc2 {[%clk 0:02:45]}  c5 {[%clk 0:02:43]} 15. Ng3 {[%clk 0:02:34]}  g6 {[%clk 0:02:41]} 16. d4 {[%clk 0:02:05]}  cxd4 {[%clk 0:02:36]} 17. cxd4 {[%clk 0:02:04]}  Qc7 {[%clk 0:02:32]} 18. Bd2 {[%clk 0:01:54]}  Rac8 {[%clk 0:02:28]} 19. Bd3 {[%clk 0:01:37]}  Nc4 {[%clk 0:02:21]} 20. Rc1 {[%clk 0:01:29]}  Qb6 {[%clk 0:02:01]} 21. Bxc4 {[%clk 0:01:28]}  bxc4 {[%clk 0:02:02]} 22. Bc3 {[%clk 0:01:26]}  Qb3 {[%clk 0:01:41]} 23. dxe5 {[%clk 0:01:00]}  dxe5 {[%clk 0:01:41]} 24. Nxe5 {[%clk 0:00:51]}  Qxd1 {[%clk 0:01:38]} 25. Rcxd1 {[%clk 0:00:51]}  Bxa4 {[%clk 0:01:38]} 26. Ra1 {[%clk 0:00:49]}  Bc2 {[%clk 0:01:35]} 27. Rxa6 {[%clk 0:00:46]}  Bg7 {[%clk 0:01:15]} 28. Nxg6 {[%clk 0:00:39]}  Nxe4 {[%clk 0:01:15]} 29. Nxe4 {[%clk 0:00:30]}  Bxe4 {[%clk 0:01:16]} 30. Nf4 {[%clk 0:00:21]}  Bb7 {[%clk 0:01:05]} 31. Raa1 {[%clk 0:00:19]}  Bf8 {[%clk 0:00:57]} 32. Nh5 {[%clk 0:00:14]}  Rxe1+ {[%clk 0:00:56]} 33. Rxe1 {[%clk 0:00:13]}  f5 {[%clk 0:00:54]} 34. Re6 {[%clk 0:00:10]}  Rc5 {[%clk 0:00:36]} 35. Rb6 {[%clk 0:00:07]}  Bc6 {[%clk 0:00:28]} 36. Bd4 {[%clk 0:00:05]}  Ba4 {[%clk 0:00:15]} 37. Bxc5 {[%clk 0:00:04]}  Bxc5 {[%clk 0:00:16]} 38. Rb7 {[%clk 0:00:04]}  Bd4 {[%clk 0:00:14]} 39. Ng3 {[%clk 0:00:03]}  Bc2 {[%clk 0:00:12]} 40. Ne2 {[%clk 0:00:03]}  Be5 {[%clk 0:00:11]} 41. Nc3 {[%clk 0:00:04]}  Bb3 {[%clk 0:00:11]} 42. g3 {[%clk 0:00:04]}  h5 {[%clk 0:00:10]} 43. f4 {[%clk 0:00:04]}  Bd4+ {[%clk 0:00:10]} 44. Kg2 {[%clk 0:00:05]}  Kf8 {[%clk 0:00:11]} 45. Rh7 {[%clk 0:00:04]}  Be3 {[%clk 0:00:09]} 46. Rxh5 {[%clk 0:00:04]}  Bc1 {[%clk 0:00:09]} 47. Rxf5+ {[%clk 0:00:04]}  Kg7 {[%clk 0:00:09]} 48. Ne4 {[%clk 0:00:03]}  Bxb2 {[%clk 0:00:08]} 49. Nc5 {[%clk 0:00:03]}  Bc2 {[%clk 0:00:07]} 50. Rg5+ {[%clk 0:00:03]}  Kh6 {[%clk 0:00:07]} 51. g4 {[%clk 0:00:03]}  Bd4 {[%clk 0:00:04]} 52. Rh5+ {[%clk 0:00:03]}  Kg6 {[%clk 0:00:02]} 53. Ne6 {[%clk 0:00:02]}  Kf7 {[%clk 0:00:01]} 54. f5 {[%clk 0:00:02]}  Be4+ {[%clk 0:00:02]} 55. Kg3 {[%clk 0:00:02]}  Be5+ {[%clk 0:00:03]} 56. Kf2 {[%clk 0:00:02]}  c3 {[%clk 0:00:04]} 57. Ke3 {[%clk 0:00:00]}  c2 {[%clk 0:00:05]} 0-1


[Site "https://www.chess.com"]

[Event "Titled Tuesday Blitz August 15 Late 2023"]
[White "Kirillov, Dmitry"]
[Black "Carrasco Miranda, Andres"]
[WhiteFideId "34180572"]
[BlackFideId "3405990"]
[WhiteElo "2477"]
[BlackElo "2335"]
[Result "0-1"]
[Round "6"]
[TimeControl "180+1"]
[Date "2023.08.15"]
[WhiteClock "0:00:04"]
[BlackClock "0:00:35"]
[Board "111"]

1. Nf3 {[%clk 0:03:00]}  Nf6 {[%clk 0:02:55]} 2. d4 {[%clk 0:03:01]}  g6 {[%clk 0:02:54]} 3. g3 {[%clk 0:03:00]}  Bg7 {[%clk 0:02:54]} 4. Bg2 {[%clk 0:03:01]}  O-O {[%clk 0:02:54]} 5. O-O {[%clk 0:03:02]}  d6 {[%clk 0:02:55]} 6. c4 {[%clk 0:03:03]}  Nc6 {[%clk 0:02:55]} 7. Nc3 {[%clk 0:03:03]}  Bf5 {[%clk 0:02:56]} 8. d5 {[%clk 0:02:59]}  Na5 {[%clk 0:02:55]} 9. Nd2 {[%clk 0:02:58]}  c5 {[%clk 0:02:53]} 10. e4 {[%clk 0:02:56]}  Bd7 {[%clk 0:02:53]} 11. b3 {[%clk 0:02:51]}  a6 {[%clk 0:02:49]} 12. Bb2 {[%clk 0:02:51]}  b5 {[%clk 0:02:49]} 13. Rb1 {[%clk 0:02:48]}  Rb8 {[%clk 0:02:47]} 14. Qc2 {[%clk 0:02:45]}  Ng4 {[%clk 0:02:44]} 15. h3 {[%clk 0:02:43]}  Nf6 {[%clk 0:02:30]} 16. f4 {[%clk 0:02:43]}  e6 {[%clk 0:02:29]} 17. e5 {[%clk 0:02:42]}  dxe5 {[%clk 0:02:28]} 18. fxe5 {[%clk 0:02:42]}  Nh5 {[%clk 0:02:29]} 19. dxe6 {[%clk 0:02:29]}  Bxe6 {[%clk 0:02:30]} 20. Nd5 {[%clk 0:02:28]}  Nxg3 {[%clk 0:02:23]} 21. Nf6+ {[%clk 0:02:26]}  Bxf6 {[%clk 0:02:19]} 22. Rxf6 {[%clk 0:02:23]}  Ne2+ {[%clk 0:02:08]} 23. Kh2 {[%clk 0:02:20]}  Nd4 {[%clk 0:02:07]} 24. Bxd4 {[%clk 0:02:10]}  Qxd4 {[%clk 0:02:04]} 25. Nf3 {[%clk 0:02:10]}  Qd8 {[%clk 0:01:52]} 26. cxb5 {[%clk 0:02:08]}  Qc7 {[%clk 0:01:46]} 27. bxa6 {[%clk 0:02:05]}  Nc6 {[%clk 0:01:46]} 28. Qxc5 {[%clk 0:02:03]}  Qb6 {[%clk 0:01:40]} 29. Qxb6 {[%clk 0:02:03]}  Rxb6 {[%clk 0:01:41]} 30. Rc1 {[%clk 0:01:54]}  Rxa6 {[%clk 0:01:40]} 31. Rc5 {[%clk 0:01:13]}  Kg7 {[%clk 0:01:34]} 32. a4 {[%clk 0:00:44]}  Nxe5 {[%clk 0:01:30]} 33. Nxe5 {[%clk 0:00:12]}  Kxf6 {[%clk 0:01:28]} 34. Ng4+ {[%clk 0:00:11]}  Kg7 {[%clk 0:01:23]} 35. Bb7 {[%clk 0:00:04]}  Rb6 {[%clk 0:01:22]} 36. Rb5 {[%clk 0:00:04]}  Rxb5 {[%clk 0:01:21]} 37. axb5 {[%clk 0:00:05]}  Rb8 {[%clk 0:01:18]} 38. Bc6 {[%clk 0:00:05]}  Bxb3 {[%clk 0:01:19]} 39. Ne5 {[%clk 0:00:05]}  Ba4 {[%clk 0:01:18]} 40. Nd7 {[%clk 0:00:05]}  Rxb5 {[%clk 0:01:14]} 41. Bxb5 {[%clk 0:00:05]}  Bxb5 {[%clk 0:01:15]} 42. Nc5 {[%clk 0:00:06]}  Kf6 {[%clk 0:01:12]} 43. Kg3 {[%clk 0:00:06]}  Ke5 {[%clk 0:01:10]} 44. h4 {[%clk 0:00:05]}  f5 {[%clk 0:01:07]} 45. Nb3 {[%clk 0:00:05]}  f4+ {[%clk 0:01:04]} 46. Kg4 {[%clk 0:00:06]}  Bd7+ {[%clk 0:01:04]} 47. Kf3 {[%clk 0:00:06]}  h6 {[%clk 0:01:02]} 48. Nd2 {[%clk 0:00:06]}  Bc6+ {[%clk 0:01:01]} 49. Kf2 {[%clk 0:00:06]}  g5 {[%clk 0:01:00]} 50. hxg5 {[%clk 0:00:07]}  hxg5 {[%clk 0:01:01]} 51. Nc4+ {[%clk 0:00:06]}  Kd4 {[%clk 0:00:51]} 52. Nd6 {[%clk 0:00:07]}  g4 {[%clk 0:00:49]} 53. Nf5+ {[%clk 0:00:07]}  Ke5 {[%clk 0:00:48]} 54. Ne7 {[%clk 0:00:07]}  g3+ {[%clk 0:00:47]} 55. Kf1 {[%clk 0:00:07]}  Be4 {[%clk 0:00:46]} 56. Kg1 {[%clk 0:00:06]}  f3 {[%clk 0:00:46]} 57. Kf1 {[%clk 0:00:05]}  Bd3+ {[%clk 0:00:45]} 58. Ke1 {[%clk 0:00:03]}  f2+ {[%clk 0:00:45]} 59. Kd2 {[%clk 0:00:04]}  Be4 {[%clk 0:00:45]} 60. Ke2 {[%clk 0:00:03]}  Kf4 {[%clk 0:00:39]} 61. Ng6+ {[%clk 0:00:03]}  Bxg6 {[%clk 0:00:39]} 62. Kf1 {[%clk 0:00:03]}  Bd3+ {[%clk 0:00:35]} 63. Kg2 {[%clk 0:00:04]}  f1=Q# {[%clk 0:00:35]} 0-1


[Site "https://www.chess.com"]

[Event "Titled Tuesday Blitz August 15 Late 2023"]
[White "dr_tatiana"]
[Black "De Souza, Cristiano Gomes"]
[BlackFideId "2151758"]
[WhiteElo "2448"]
[BlackElo "2262"]
[Result "1-0"]
[Round "6"]
[TimeControl "180+1"]
[Date "2023.08.15"]
[WhiteClock "0:01:48"]
[BlackClock "0:00:06"]
[Board "115"]

1. e4 {[%clk 0:03:00]}  c5 {[%clk 0:01:36]} 2. Nc3 {[%clk 0:02:58]}  d6 {[%clk 0:01:35]} 3. g3 {[%clk 0:02:58]}  g6 {[%clk 0:01:34]} 4. Bg2 {[%clk 0:02:58]}  Bg7 {[%clk 0:01:34]} 5. d3 {[%clk 0:02:58]}  Nc6 {[%clk 0:01:35]} 6. f4 {[%clk 0:02:59]}  Nf6 {[%clk 0:01:34]} 7. Nf3 {[%clk 0:03:00]}  O-O {[%clk 0:01:34]} 8. O-O {[%clk 0:03:00]}  Bg4 {[%clk 0:01:33]} 9. h3 {[%clk 0:03:01]}  Bxf3 {[%clk 0:01:33]} 10. Qxf3 {[%clk 0:03:01]}  Nd4 {[%clk 0:01:33]} 11. Qf2 {[%clk 0:03:02]}  Nd7 {[%clk 0:01:31]} 12. f5 {[%clk 0:03:01]}  Rb8 {[%clk 0:01:26]} 13. g4 {[%clk 0:02:57]}  b5 {[%clk 0:01:23]} 14. a3 {[%clk 0:02:57]}  a5 {[%clk 0:01:22]} 15. Nd5 {[%clk 0:02:56]}  b4 {[%clk 0:01:21]} 16. axb4 {[%clk 0:02:55]}  axb4 {[%clk 0:01:20]} 17. g5 {[%clk 0:02:52]}  e6 {[%clk 0:01:11]} 18. f6 {[%clk 0:02:41]}  exd5 {[%clk 0:01:08]} 19. fxg7 {[%clk 0:02:41]}  Kxg7 {[%clk 0:01:07]} 20. c3 {[%clk 0:02:34]}  bxc3 {[%clk 0:01:05]} 21. bxc3 {[%clk 0:02:35]}  Ne6 {[%clk 0:01:00]} 22. exd5 {[%clk 0:02:31]}  Nxg5 {[%clk 0:00:55]} 23. Bf4 {[%clk 0:02:21]}  Ne5 {[%clk 0:00:43]} 24. Qg3 {[%clk 0:02:18]}  h6 {[%clk 0:00:37]} 25. h4 {[%clk 0:02:02]}  Nh7 {[%clk 0:00:32]} 26. d4 {[%clk 0:02:01]}  cxd4 {[%clk 0:00:28]} 27. cxd4 {[%clk 0:02:02]}  Nc4 {[%clk 0:00:25]} 28. Rac1 {[%clk 0:02:02]}  Rc8 {[%clk 0:00:19]} 29. Rxc4 {[%clk 0:02:02]}  Rxc4 {[%clk 0:00:19]} 30. Bxd6 {[%clk 0:02:03]}  Re8 {[%clk 0:00:19]} 31. Be5+ {[%clk 0:01:59]}  Kg8 {[%clk 0:00:19]} 32. d6 {[%clk 0:01:53]}  Qd7 {[%clk 0:00:18]} 33. Bd5 {[%clk 0:01:52]}  Rcc8 {[%clk 0:00:09]} 34. Rxf7 {[%clk 0:01:49]}  Qxf7 {[%clk 0:00:06]} 35. Qxg6+ {[%clk 0:01:48]} 1-0


[Site "https://www.chess.com"]

[Event "Titled Tuesday Blitz August 15 Late 2023"]
[White "Kohler, Aran"]
[Black "Farmani Anosheh, Armin"]
[WhiteFideId "1002856"]
[BlackFideId "24613240"]
[WhiteElo "2248"]
[BlackElo "2445"]
[Result "1-0"]
[Round "6"]
[TimeControl "180+1"]
[Date "2023.08.15"]
[WhiteClock "0:00:40"]
[BlackClock "0:00:00"]
[Board "116"]

1. d4 {[%clk 0:02:59]}  d5 {[%clk 0:02:59]} 2. Nf3 {[%clk 0:03:00]}  Nf6 {[%clk 0:02:59]} 3. Bf4 {[%clk 0:03:00]}  c5 {[%clk 0:02:58]} 4. e3 {[%clk 0:02:59]}  Nc6 {[%clk 0:02:58]} 5. c3 {[%clk 0:02:59]}  e6 {[%clk 0:02:51]} 6. Nbd2 {[%clk 0:02:57]}  cxd4 {[%clk 0:02:47]} 7. exd4 {[%clk 0:02:57]}  Nh5 {[%clk 0:02:47]} 8. Be3 {[%clk 0:02:55]}  Bd6 {[%clk 0:02:47]} 9. Ne5 {[%clk 0:02:50]}  g6 {[%clk 0:02:42]} 10. f4 {[%clk 0:02:42]}  Ng7 {[%clk 0:02:13]} 11. g3 {[%clk 0:02:36]}  Nf5 {[%clk 0:02:08]} 12. Bf2 {[%clk 0:02:37]}  h5 {[%clk 0:02:08]} 13. Bd3 {[%clk 0:02:36]}  Qe7 {[%clk 0:01:46]} 14. Qe2 {[%clk 0:02:35]}  Bd7 {[%clk 0:01:43]} 15. O-O-O {[%clk 0:02:29]}  O-O-O {[%clk 0:01:43]} 16. Kb1 {[%clk 0:02:29]}  Kb8 {[%clk 0:01:33]} 17. Rhe1 {[%clk 0:02:29]}  Be8 {[%clk 0:01:27]} 18. Bxf5 {[%clk 0:02:23]}  gxf5 {[%clk 0:01:23]} 19. Ndf3 {[%clk 0:02:23]}  Qc7 {[%clk 0:01:12]} 20. Rc1 {[%clk 0:02:16]}  Na5 {[%clk 0:01:09]} 21. b3 {[%clk 0:02:15]}  f6 {[%clk 0:00:56]} 22. Nd3 {[%clk 0:02:13]}  Bb5 {[%clk 0:00:57]} 23. Qd2 {[%clk 0:02:01]}  Ba3 {[%clk 0:00:27]} 24. Rc2 {[%clk 0:01:58]}  Qb6 {[%clk 0:00:27]} 25. Nc5 {[%clk 0:01:48]}  Rhe8 {[%clk 0:00:22]} 26. Ka1 {[%clk 0:01:21]}  Qd6 {[%clk 0:00:16]} 27. Nd3 {[%clk 0:01:11]}  b6 {[%clk 0:00:16]} 28. Re3 {[%clk 0:01:02]}  Rc8 {[%clk 0:00:15]} 29. Be1 {[%clk 0:01:02]}  Qd7 {[%clk 0:00:11]} 30. Qd1 {[%clk 0:00:57]}  Bd6 {[%clk 0:00:08]} 31. Rce2 {[%clk 0:00:57]}  Bf8 {[%clk 0:00:07]} 32. Nh4 {[%clk 0:00:52]}  Bg7 {[%clk 0:00:05]} 33. Bd2 {[%clk 0:00:49]}  Bh8 {[%clk 0:00:05]} 34. Qe1 {[%clk 0:00:49]}  Rc6 {[%clk 0:00:04]} 35. Nxf5 {[%clk 0:00:49]}  Bxd3 {[%clk 0:00:03]} 36. Rxd3 {[%clk 0:00:48]}  Rcc8 {[%clk 0:00:03]} 37. Ne3 {[%clk 0:00:46]}  Nc6 {[%clk 0:00:02]} 38. Nc2 {[%clk 0:00:45]}  e5 {[%clk 0:00:02]} 39. dxe5 {[%clk 0:00:44]}  fxe5 {[%clk 0:00:03]} 40. fxe5 {[%clk 0:00:42]}  Nxe5 {[%clk 0:00:00]} 41. Rde3 {[%clk 0:00:40]} 1-0


[Site "https://www.chess.com"]

[Event "Titled Tuesday Blitz August 15 Late 2023"]
[White "Curtis, John"]
[Black "Cooklev, Steven"]
[WhiteFideId "3200256"]
[BlackFideId "2050552"]
[WhiteElo "2068"]
[BlackElo "2432"]
[Result "1-0"]
[Round "6"]
[TimeControl "180+1"]
[Date "2023.08.15"]
[WhiteClock "0:00:29"]
[BlackClock "0:00:00"]
[Board "119"]

1. d4 {[%clk 0:03:00]}  Nf6 {[%clk 0:02:59]} 2. Nf3 {[%clk 0:02:59]}  d5 {[%clk 0:02:59]} 3. Bg5 {[%clk 0:02:59]}  Ne4 {[%clk 0:02:59]} 4. h4 {[%clk 0:02:53]}  c5 {[%clk 0:02:58]} 5. dxc5 {[%clk 0:02:51]}  Nc6 {[%clk 0:02:50]} 6. e3 {[%clk 0:02:51]}  f6 {[%clk 0:02:41]} 7. Bf4 {[%clk 0:02:47]}  e5 {[%clk 0:02:38]} 8. Bh2 {[%clk 0:02:46]}  Bxc5 {[%clk 0:02:38]} 9. Nbd2 {[%clk 0:02:35]}  Qb6 {[%clk 0:02:24]} 10. Nb3 {[%clk 0:02:32]}  Nxf2 {[%clk 0:02:17]} 11. Kxf2 {[%clk 0:02:28]}  Bxe3+ {[%clk 0:02:17]} 12. Ke2 {[%clk 0:02:17]}  Bg4 {[%clk 0:02:10]} 13. Qxd5 {[%clk 0:01:52]}  Rd8 {[%clk 0:02:09]} 14. Qe4 {[%clk 0:01:35]}  f5 {[%clk 0:01:51]} 15. Qxe3 {[%clk 0:01:33]}  Qc7 {[%clk 0:01:25]} 16. Kf2 {[%clk 0:01:19]}  O-O {[%clk 0:01:23]} 17. Bxe5 {[%clk 0:01:05]}  Nxe5 {[%clk 0:01:11]} 18. Nxe5 {[%clk 0:00:53]}  f4 {[%clk 0:00:33]} 19. Qc5 {[%clk 0:00:52]}  Rd2+ {[%clk 0:00:26]} 20. Kg1 {[%clk 0:00:50]}  Qxc5+ {[%clk 0:00:12]} 21. Nxc5 {[%clk 0:00:49]}  Rxc2 {[%clk 0:00:11]} 22. Bc4+ {[%clk 0:00:41]}  Kh8 {[%clk 0:00:11]} 23. h5 {[%clk 0:00:36]}  Bf5 {[%clk 0:00:09]} 24. Bb3 {[%clk 0:00:34]}  Rxc5 {[%clk 0:00:08]} 25. Ng6+ {[%clk 0:00:34]}  Bxg6 {[%clk 0:00:08]} 26. hxg6 {[%clk 0:00:34]}  h6 {[%clk 0:00:09]} 27. Rh3 {[%clk 0:00:32]}  Rg5 {[%clk 0:00:07]} 28. Bf7 {[%clk 0:00:31]}  Rd8 {[%clk 0:00:05]} 29. Rf1 {[%clk 0:00:30]}  Rb5 {[%clk 0:00:00]} 30. Rf2 {[%clk 0:00:29]} 1-0


[Site "https://www.chess.com"]